Cogmind - Beta 9.3 --- EXPLORER MODE // 2019.12.25 @ 04:58:42 // Winter2019/RPGLIKE Player: K.Ioz Result: Destroyed by S-27 Virus with Autogun Performance ------------- Evolutions (5) 2500 Regions Visited (16) 3200 Robots Destroyed (459) 2295 Value Destroyed (19113) 19113 Prototype IDs (10) 200 Alien Tech Used (0) 0 Bonus (9364) 9364 TOTAL SCORE: 36672 Bonus ------- Triggered High Security 500 High Alert Combat Kills 5642 Follower Combat Kills 718 Entered Garrisons 800 Used RIF Installer 2000 Friendly Fire -296 Cogmind --------- Core Integrity 0/800 Matter 446/700 Energy 383/455 System Corruption 3% Temperature Cool (66) Movement Core (100) Ox1 Location -5/Upper Caves Parts ------- > --- POWER (2) -------- Improved Ion Engine Reinforced Deuterium Engine > --- PROPULSION (3) --- Nuclear Pulse Thruster Field Propulsion Drive > --- UTILITY (7) ------ Advanced Visual Processing Unit Improved Signal Interpreter Particle Charger Hardened Heavy Armor Plating Advanced Focal Shield Improved Shield Generator > --- WEAPON (4) ------- Heavy Ion Cannon Coil Gun Mini Assault Cannon Mass Driver > --- INVENTORY (6) ---- High-capacity Matter Pod (200) Advanced ECM Suite Hardcell Cannon Hardcell Cannon Improved Datajack Peak State ------------ > --- POWER ------------ Improved Ion Engine Reinforced Deuterium Engine > --- PROPULSION ------- Nuclear Pulse Thruster Field Propulsion Drive > --- UTILITY ---------- Advanced Visual Processing Unit Improved Signal Interpreter Particle Charger Hardened Heavy Armor Plating Advanced Focal Shield Improved Shield Generator > --- WEAPON ----------- Heavy Ion Cannon Coil Gun Mini Assault Cannon Mass Driver > --- INVENTORY -------- High-capacity Matter Pod Advanced ECM Suite Hardcell Cannon Hardcell Cannon Improved Datajack [Rating: 66] Favorites ----------- Power Improved Ion Engine Engine Improved Ion Engine Propulsion Light Treads Treads Light Treads Leg Carbon-fiber Leg Hover Unit Airjet Flight Unit VTOL Module Utility Advanced Visual Processing Unit Device Particle Charger Storage High-capacity Matter Pod Processor Advanced Visual Processing Unit Hackware Relay Coupler [Grunt] Protection Light Armor Plating Weapon Heavy Assault Rifle Energy Gun Arc Projector Energy Cannon Heavy Ion Cannon Ballistic Gun Heavy Assault Rifle Ballistic Cannon Mini Assault Cannon Special Melee Weapon Datajack Build | -11 -10 -10 -9 -9 -9 -8 -8 -8 -8 -8 -7 -7 -6 -6 -5 -5 ------- Run | Scr Mat Min Mat Min Exi Min Mat Gar Mat Gar Fac Gar Fac Gar Fac Upp Slots Evolved 12 | 2 . 1 1 1 . . 2 . . 1 1 . . 1 . 2 Power 1 | . . . . . . . . . . . . . . . . 1 Propulsion 2 | . . . . . . . 1 . . . . . . . . 1 Utility 6 | 1 . 1 1 1 . . 1 . . 1 . . . . . . Weapon 3 | 1 . . . . . . . . . . 1 . . 1 . . Parts Attached 166 | 6 4 4 10 1 3 . 25 18 14 6 24 2 20 14 11 4 Power 9 | 1 . 1 . . 1 . . 1 2 . 1 . 1 . . 1 Engine 9 | 1 . 1 . . 1 . . 1 2 . 1 . 1 . . 1 Core . | . . . . . . . . . . . . . . . . . Reactor . | . . . . . . . . . . . . . . . . . Propulsion 14 | 1 . . . . . . 2 2 3 . 1 . 3 . 2 . Treads 1 | 1 . . . . . . . . . . . . . . . . Leg 2 | . . . . . . . . 2 . . . . . . . . Wheel . | . . . . . . . . . . . . . . . . . Hover 1 | . . . . . . . 1 . . . . . . . . . Flight 10 | . . . . . . . 1 . 3 . 1 . 3 . 2 . Utility 44 | 2 2 3 2 1 . . 7 1 2 4 6 . 4 1 8 1 Device 27 | . 2 2 1 . . . 4 . . . 4 . 4 1 8 1 Storage 1 | . . . . . . . 1 . . . . . . . . . Processor 4 | . . 1 . 1 . . 2 . . . . . . . . . Hackware 3 | . . . . . . . . . . 3 . . . . . . Protection 9 | 2 . . 1 . . . . 1 2 1 2 . . . . . Artifact . | . . . . . . . . . . . . . . . . . Weapon 99 | 2 2 . 8 . 2 . 16 14 7 2 16 2 12 13 1 2 Energy Gun 8 | 1 . . . . . . 3 . . . 3 1 . . . . Energy Cannon 28 | . . . 1 . . . 5 5 4 1 4 1 5 2 . . Ballistic Gun 44 | 1 2 . 6 . 1 . 8 7 3 1 6 . 7 1 1 . Ballistic Cannon 8 | . . . . . . . . . . . 1 . . 6 . 1 Launcher . | . . . . . . . . . . . . . . . . . Special Weapon . | . . . . . . . . . . . . . . . . . Impact Weapon . | . . . . . . . . . . . . . . . . . Slashing Weapon . | . . . . . . . . . . . . . . . . . Piercing Weapon . | . . . . . . . . . . . . . . . . . Special Melee Weapon 11 | . . . 1 . 1 . . 2 . . 2 . . 4 . 1 Unidentified Prototypes 7 | . . . 1 . . . 2 . 1 . 2 . 1 . . . Parts Lost 2 | . . . . . . . . . . . 1 . 1 . . . Power 2 | . . . . . . . . . . . 1 . 1 . . . Propulsion . | . . . . . . . . . . . . . . . . . Utility . | . . . . . . . . . . . . . . . . . Weapon . | . . . . . . . . . . . . . . . . . Highest Loss Streak 1 | . . . . . . . . . . . 1 . 1 . . . Average Slot Usage (%) 95 | . 100 98 97 100 100 100 98 100 97 90 91 92 92 92 91 87 Engine 9 | . 16 14 12 11 11 11 10 9 9 8 7 7 7 7 7 10 Treads 5 | . 16 14 12 11 11 11 3 . . . . . . . . . Flight 8 | . . . . . . . 6 9 17 17 15 15 15 14 13 12 Device 19 | . 31 23 25 22 22 22 20 18 18 17 15 15 15 14 16 18 Processor 16 | . . 14 12 21 22 22 26 27 25 17 15 15 15 14 14 12 Hackware 2 | . . . . . . . . . . . 7 7 7 7 4 . Protection 7 | . 1 . 10 11 11 11 10 9 9 8 7 7 7 7 7 6 Energy Cannon 3 | . . . . . . . 1 3 5 8 2 6 3 6 7 6 Ballistic Gun 15 | . 32 29 24 22 13 22 18 14 12 9 10 7 11 7 7 6 Ballistic Cannon 3 | . . . . . . . . . . . 2 7 7 10 14 11 Naked Turns . | . . . . . . . . . . . . . . . . . Heaviest Build 77 | 10 11 12 16 16 16 16 21 23 35 35 46 45 48 60 62 77 Greatest Support 62 | 20 20 20 20 20 20 20 40 29 31 36 47 47 50 55 62 62 Greatest Overweight (x) 2 | 2 . . . . . . . . 1 1 1 . 1 1 1 1 Average Overweight (x) . | . . . . . . . . . . . . . . . . . Largest Inventory Capacity 6 | 1 1 1 3 3 3 3 4 4 4 4 5 5 5 5 6 6 Average Capacity 3 | 1 1 1 1 3 3 3 3 4 4 4 4 5 5 5 5 6 Most Carried 6 | . 1 1 3 3 3 3 4 4 4 4 5 5 5 5 6 5 Average Carried 3 | . . 1 1 2 3 2 3 3 4 3 4 5 4 4 5 5 Final Capacity 6 | 1 1 1 3 3 3 3 4 4 4 4 5 5 5 5 6 6 Final Carried 5 | . 1 1 3 3 3 3 4 4 4 4 5 5 5 5 5 5 Class Distribution -------------------- 44% | Hacker-Scout 42% | Hacker-Skirmisher 6% | Hacker-Gunner 5% | Hacker-Assassin Dominant Class ---------------- Hacker-Skirmisher | -10/Materials Hacker-Skirmisher | -10/Mines Hacker-Skirmisher | -9/Materials Hacker-Skirmisher | -9/Mines Hacker-Assassin | -9/Exiles Hacker-Skirmisher | -8/Mines Hacker-Scout | -8/Materials Hacker-Scout | -8/Garrison Hacker-Scout | -8/Materials Hacker-Scout | -8/Garrison Hacker-Scout | -7/Factory Hacker-Scout | -7/Garrison Hacker-Scout | -6/Factory Hacker-Gunner | -6/Garrison Hacker-Scout | -5/Factory Hacker-Gunner | -5/Upper Caves Resources | -11 -10 -10 -9 -9 -9 -8 -8 -8 -8 -8 -7 -7 -6 -6 -5 -5 ----------- Run | Scr Mat Min Mat Min Exi Min Mat Gar Mat Gar Fac Gar Fac Gar Fac Upp Matter Collected 10275 | 236 214 372 566 214 . 132 652 671 641 258 962 543 1261 873 2564 116 Remotely . | . . . . . . . . . . . . . . . . . Salvage Created 15643 | . 263 273 1017 256 . 200 1196 1125 1260 452 1778 859 2124 569 3838 433 Parts 974 | . 25 28 86 5 . 20 106 67 85 36 99 41 129 49 185 13 Haulers Intercepted 2 | . . . 1 . . . . . 1 . . . . . . . Recyclers Shooed 6 | . 1 . . . . . . . 2 . 1 . 1 . 1 . Parts Field Recycled . | . . . . . . . . . . . . . . . . . Retrieved Matter . | . . . . . . . . . . . . . . . . . Parts Self-Destructed . | . . . . . . . . . . . . . . . . . Prevented . | . . . . . . . . . . . . . . . . . Kills | -11 -10 -10 -9 -9 -9 -8 -8 -8 -8 -8 -7 -7 -6 -6 -5 -5 ------- Run | Scr Mat Min Mat Min Exi Min Mat Gar Mat Gar Fac Gar Fac Gar Fac Upp Combat Hostiles Destroyed 357 | . 6 8 21 21 . 6 29 28 21 19 35 24 41 28 61 9 Guns 199 | . 6 8 21 21 . 6 25 22 13 8 18 2 22 12 14 1 Cannons 157 | . . . . . . . 4 6 8 10 17 22 19 16 47 8 Classes Destroyed 22 | . 5 1 4 3 . 2 1 1 . . 1 . 2 . 2 . Worker 23 | . . 2 1 . . 3 2 . 3 . 3 . 2 . 7 . Builder 17 | . . . . . . . 4 . 4 . 2 . 5 . 2 . Tunneler 1 | . . . . . . . . . . . . . 1 . . . Hauler 2 | . . . 1 . . . . . 1 . . . . . . . Recycler 10 | . 1 . . . . . 2 . 1 . . . . . 6 . Mechanic 5 | . 1 . . . . . . . 1 . 1 . 2 . . . Operator 13 | . . . 1 . . . 2 . 3 . 2 . 2 . 3 . Drone 1 | . . . . . . . . . . . . . . . 1 . Watcher 30 | . 3 . 5 . . . 5 . 5 . 5 . 3 . 4 . Swarmer 69 | . 5 3 7 3 . 1 11 . 4 8 8 4 2 5 6 2 Saboteur 2 | . . . . . . . . . . . . . . . 2 . Grunt 142 | . 1 5 6 . . 2 9 10 4 9 10 15 27 16 25 3 Brawler 12 | . . . . . . 1 . 1 2 . 2 . . 2 3 1 Duelist 18 | . . . 1 . . 1 . 7 1 . 3 . . . 3 2 Protector 2 | . . . . . . . . 1 . . . . . . 1 . Sentry 55 | . . . 7 . . . 9 5 8 1 9 4 5 2 4 1 Demolisher 2 | . . . . 1 . . . 1 . . . . . . . . Hunter 20 | . . . . . . 1 . 3 2 1 . 1 3 1 8 . Programmer 15 | . . . . . . . . . . . 3 . 3 1 8 . Behemoth 2 | . . . . . . . . . . . . . 1 1 . . Zionite 1 | . . . . 1 . . . . . . . . . . . . Assembled 17 | . . . . 17 . . . . . . . . . . . . Best Kill Streak 13 | . 3 2 4 7 . 4 10 5 13 5 8 3 10 9 9 7 Combat Bots Only 9 | . 2 2 4 7 . 2 7 5 3 5 6 3 9 9 8 7 Max Kills in Single Turn 3 | . 2 1 2 2 . 2 2 1 1 1 2 1 2 3 3 1 Gunslinging 1 | . . . . 1 . . 1 . . . . . . . . . Exploded . | . . . . . . . . . . . . . . . . . Melee . | . . . . . . . . . . . . . . . . . Uniques/NPCs Destroyed . | . . . . . . . . . . . . . . . . . Combat | -11 -10 -10 -9 -9 -9 -8 -8 -8 -8 -8 -7 -7 -6 -6 -5 -5 -------- Run | Scr Mat Min Mat Min Exi Min Mat Gar Mat Gar Fac Gar Fac Gar Fac Upp Damage Taken 8472 | . 121 293 307 384 . 124 316 977 466 530 1551 490 777 466 1362 308 Core 6591 | . 98 237 240 307 . 101 249 782 362 418 1164 365 630 353 1049 236 Absorbed by Shields 932 | . . . . . . . . 5 . 21 70 . 97 203 404 132 Redirected to Core 5528 | . 71 165 210 251 . 66 210 604 314 343 1047 337 453 317 944 196 Core Remaining (%) 96 | 100 . 98 . . . 100 . . . 100 . 80 . 100 . . Volleys Fired 981 | . 18 29 61 34 . 17 78 87 115 62 112 58 99 66 129 16 Largest 4 | . 2 2 2 2 . 2 2 2 2 2 3 3 3 4 4 4 Hottest 208 | . 40 40 46 46 . 46 98 98 98 98 146 136 136 208 200 200 Shots Fired 2460 | . 36 58 122 68 . 34 152 174 229 124 267 160 294 196 482 64 Gun 1431 | . 36 58 122 68 . 34 134 119 167 66 193 60 148 82 128 16 Cannon 1029 | . . . . . . . 18 55 62 58 74 100 146 114 354 48 Launcher . | . . . . . . . . . . . . . . . . . Special . | . . . . . . . . . . . . . . . . . Kinetic 1946 | . 36 58 122 68 . 34 134 119 167 66 203 106 247 152 386 48 Thermal 493 | . . . . . . . 18 55 62 58 50 47 47 44 96 16 Explosive . | . . . . . . . . . . . . . . . . . Electromagnetic 21 | . . . . . . . . . . . 14 7 . . . . Robot Hit Streak 59 | . 12 23 25 18 . 14 59 25 33 48 37 34 55 37 49 18 Robot Miss Streak 3 | . 1 1 1 1 . 2 3 2 2 1 2 2 3 2 2 2 Penetration Max 2 | . . . . . . . . . . . . . 1 1 2 . Secondary Targets 12 | . . 2 . 2 . 1 4 . . . 3 . . . . . Max Gunslinging Chain 1 | . . 1 . 1 . 1 1 . . . 1 . . . . . Shots Hit Robots 1887 | . 28 47 100 50 . 28 130 152 188 82 208 100 225 157 340 52 Core Hits 782 | . 15 18 36 31 . 14 67 56 57 30 88 41 109 54 151 15 Critical Hits 32 | . . . 2 . . . 2 . 1 . 4 3 8 2 10 . Critical Kills 11 | . . . 2 . . . 1 . . . 2 1 4 1 . . Critical Parts Destroyed 21 | . . . . . . . 1 . 1 . 2 2 4 1 10 . Melee Attacks 35 | . . . 1 . . . . 13 . . 7 . . 10 . 4 Impact . | . . . . . . . . . . . . . . . . . Slashing . | . . . . . . . . . . . . . . . . . Piercing . | . . . . . . . . . . . . . . . . . Sneak Attacks 11 | . . . 1 . . . . . . . 2 . . 8 . . Combat Hostiles 2 | . . . . . . . . . . . . . . 2 . . Follow-up Attacks . | . . . . . . . . . . . . . . . . . Damage Inflicted 45005 | . 367 581 1504 807 . 465 2465 2787 4047 1829 4549 2420 6247 4138 11538 1261 Guns 20420 | . 367 581 1504 806 . 465 2009 1576 2340 672 2436 572 2179 1667 2966 280 Cannons 24321 | . . . . . . . 456 1211 1707 1157 2047 1848 3895 2447 8572 981 Explosions 208 | . . . . . . . . . . . 35 . 173 . . . Melee . | . . . . . . . . . . . . . . . . . Ramming 56 | . . . . 1 . . . . . . 31 . . 24 . . Kinetic 33922 | . 367 581 1504 806 . 465 2009 1576 2340 672 3346 1694 4993 3395 9260 914 Thermal 10632 | . . . . . . . 456 1211 1707 1157 994 682 1081 719 2278 347 Explosive 173 | . . . . . . . . . . . . . 173 . . . Electromagnetic 222 | . . . . . . . . . . . 178 44 . . . . Impact . | . . . . . . . . . . . . . . . . . Slashing . | . . . . . . . . . . . . . . . . . Piercing . | . . . . . . . . . . . . . . . . . Highest Corruption 3 | . . . . . . . . . . . . . 1 1 3 3 Average Corruption 1 | . . . . . . . . . . . . . 1 1 1 3 Corruption Purged . | . . . . . . . . . . . . . . . . . Effects 37 | . . . . . . . . . . . . . 1 9 14 13 Message Errors 7 | . . . . . . . . . . . . . 1 3 2 1 Matter Fused 3 | . . . . . . . . . . . . . . . . 3 Heat Flow Errors 1 | . . . . . . . . . . . . . . . 1 . Energy Discharges 6 | . . . . . . . . . . . . . . 1 1 4 Data Loss (minor) 8 | . . . . . . . . . . . . . . 2 4 2 Targeting Errors 10 | . . . . . . . . . . . . . . 2 5 3 Weapon Failures 2 | . . . . . . . . . . . . . . 1 1 . Overload Shots . | . . . . . . . . . . . . . . . . . Overflow Damage 568 | . . . . . . . . 19 94 38 22 6 67 69 237 16 Projectiles 568 | . . . . . . . . 19 94 38 22 6 67 69 237 16 Explosions . | . . . . . . . . . . . . . . . . . Melee . | . . . . . . . . . . . . . . . . . Knockbacks 78 | . . . . . . . . . . . 10 7 18 13 28 2 Impact . | . . . . . . . . . . . . . . . . . Kinetic 76 | . . . . . . . . . . . 10 7 18 11 28 2 Secondary 2 | . . . . . . . . . . . . . . 2 . . Self-Inflicted Damage 106 | . . . . . . . . . . . 15 . 79 12 . . Shots 2 | . . . . . . . . . . . . . 2 . . . Rammed 5 | . . . . 1 . . . . . . 3 . . 1 . . Targets Rammed 5 | . . . . 1 . . . . . . 3 . . 1 . . Kicked . | . . . . . . . . . . . . . . . . . Crushed . | . . . . . . . . . . . . . . . . . Highest Temperature 149 | . . 21 20 19 . . . . . . 5 . 4 32 149 87 Average Temperature 14 | . . 7 9 14 . . . . . . 3 . 4 10 13 37 Received Heat Transfer 3637 | . 18 243 180 20 . 45 216 372 243 360 780 225 342 175 370 48 Siege Activations . | . . . . . . . . . . . . . . . . . Robots Corrupted . | . . . . . . . . . . . . . . . . . Combat Hostiles . | . . . . . . . . . . . . . . . . . Parts Fried 2 | . . . . . . . . . . . 2 . . . . . Impact Corruptions . | . . . . . . . . . . . . . . . . . Robots Melted 1 | . . . . . . . . . . 1 . . . . . . Combat Hostiles 1 | . . . . . . . . . . 1 . . . . . . Parts Melted 9 | . . . . . . . . 2 . 2 2 . 2 . 1 . Heat Transferred 12598 | . . . . . . . 666 1465 2220 1479 1406 814 1110 738 2330 370 Parts Sabotaged . | . . . . . . . . . . . . . . . . . Parts Stolen . | . . . . . . . . . . . . . . . . . Parts Stripped . | . . . . . . . . . . . . . . . . . Power Chain Reactions . | . . . . . . . . . . . . . . . . . Missiles Intercepted . | . . . . . . . . . . . . . . . . . Alert | -11 -10 -10 -9 -9 -9 -8 -8 -8 -8 -8 -7 -7 -6 -6 -5 -5 ------- Run | Scr Mat Min Mat Min Exi Min Mat Gar Mat Gar Fac Gar Fac Gar Fac Upp Peak Influence 2471 | . 133 104 262 117 . 116 376 1042 809 932 688 1085 1053 1392 2471 . Average Influence 487 | . 30 43 89 33 . 65 189 646 609 620 473 666 698 1040 1436 . Maximum Alert Level 5 | . . . 1 . . . 1 3 3 3 2 3 3 4 5 . Low Security (%) 39 | 100 100 100 92 100 . 100 44 . . . . . . . . . Level 1 8 | . . . 7 . . . 55 14 . 8 28 14 . . . . Level 2 24 | . . . . . . . . 37 80 57 71 41 49 17 8 . Level 3 17 | . . . . . . . . 46 18 33 . 43 50 32 28 . Level 4 6 | . . . . . . . . . . . . . . 50 24 . Level 5 1 | . . . . . . . . . . . . . . . 10 . High Security 2 | . . . . . . . . . . . . . . . 27 . Max Security . | . . . . . . . . . . . . . . . . . Squads Dispatched 59 | . . 1 2 . . . 2 . 2 . 10 . 15 . 27 . Investigation 11 | . . 1 2 . . . . . . . 2 . 2 . 4 . Extermination 7 | . . . . . . . . . . . 2 . 3 . 2 . Reinforcement 13 | . . . . . . . 2 . 1 . . . 7 . 3 . Assault 20 | . . . . . . . . . 1 . . . 2 . 17 . Garrison 8 | . . . . . . . . . . . 6 . 1 . 1 . Intercept . | . . . . . . . . . . . . . . . . . Construction Impeded 5 | . . . . . . . . . 1 . . . 3 . 1 . Haulers Reinforced 3 | . . . . . . . . . . . . . 2 . 1 . Stealth | -11 -10 -10 -9 -9 -9 -8 -8 -8 -8 -8 -7 -7 -6 -6 -5 -5 --------- Run | Scr Mat Min Mat Min Exi Min Mat Gar Mat Gar Fac Gar Fac Gar Fac Upp Distress Signals 13 | . 1 . 1 . . . 1 1 1 . 4 . 3 . 1 . Communications Jammed . | . . . . . . . . . . . . . . . . . Distress Signals . | . . . . . . . . . . . . . . . . . Times Spotted 547 | . 14 13 34 26 . 9 35 36 35 18 54 27 49 33 153 11 Peak Tracking Total 25 | . 3 2 3 5 . 3 4 6 6 6 6 3 7 6 25 9 Tactical Retreats 46 | . 2 2 4 4 . 2 1 4 1 2 5 4 1 2 12 . Traps | -11 -10 -10 -9 -9 -9 -8 -8 -8 -8 -8 -7 -7 -6 -6 -5 -5 ------- Run | Scr Mat Min Mat Min Exi Min Mat Gar Mat Gar Fac Gar Fac Gar Fac Upp Traps Triggered 33 | . 1 . . . . . . 7 . 6 3 7 . 6 3 . Indirectly . | . . . . . . . . . . . . . . . . . Trap Hack Attempts 6 | . . . . . . . . 6 . . . . . . . . Triggered . | . . . . . . . . . . . . . . . . . Disarmed 7 | . . . 7 . . . . . . . . . . . . . Reprogrammed 58 | . 21 . 9 . . . 4 2 7 . 6 . . . 9 . Reused 15 | . 2 . . . . . 1 . . . 10 . . . 2 . Traps Extracted . | . . . . . . . . . . . . . . . . . Installed . | . . . . . . . . . . . . . . . . . Triggered 15 | . 2 . . . . . 1 . . . 10 . . . 2 . Machines | -11 -10 -10 -9 -9 -9 -8 -8 -8 -8 -8 -7 -7 -6 -6 -5 -5 ---------- Run | Scr Mat Min Mat Min Exi Min Mat Gar Mat Gar Fac Gar Fac Gar Fac Upp Machines Disabled 58 | . . 1 1 . . . 2 3 . 9 2 11 3 6 20 . Max in Single Turn 2 | . . . 1 . . . 1 1 . 1 2 1 1 1 2 . Garrison Access 1 | . . . . . . . . . . . . . . . 1 . Garrison Relay 12 | . . . . . . . . . . 3 . 4 . 5 . . Machines Sabotaged . | . . . . . . . . . . . . . . . . . Garrisons Compromised . | . . . . . . . . . . . . . . . . . Overloaded Fab Kills . | . . . . . . . . . . . . . . . . . Fab Network Shutdowns . | . . . . . . . . . . . . . . . . . Hacking | -11 -10 -10 -9 -9 -9 -8 -8 -8 -8 -8 -7 -7 -6 -6 -5 -5 --------- Run | Scr Mat Min Mat Min Exi Min Mat Gar Mat Gar Fac Gar Fac Gar Fac Upp Machines Accessed 72 | . 8 1 14 . . 1 6 . 12 . 14 . 7 . 8 1 Terminals 48 | . 7 . 11 . . 1 4 . 10 . 7 . 2 . 6 . Fabricators 6 | . . . . . . . . . . . 1 . 3 . 2 . Repair Stations 1 | . . . . . . . . . . . 1 . . . . . Recycling Units 8 | . 1 . 2 . . . . . 1 . 3 . 1 . . . Scanalyzers 2 | . . . 1 . . . 1 . . . . . . . . . Garrison Access 5 | . . . . . . . 1 . 1 . 2 . 1 . . . Total Hacks 247 | . 37 1 58 . . 5 24 . 40 . 36 . 16 . 29 1 Successful 203 | . 32 1 44 . . 5 21 . 36 . 29 . 11 . 23 1 Failed 44 | . 5 . 14 . . . 3 . 4 . 7 . 5 . 6 . Catastrophic 7 | . . . 4 . . . . . . . . . 1 . 2 . Database Lockouts . | . . . . . . . . . . . . . . . . . Manual 99 | . 13 . 25 . . 5 11 . 20 . 11 . 3 . 11 . Terminals 208 | . 36 . 53 . . 5 20 . 38 . 26 . 8 . 22 . Fabricators 13 | . . . . . . . . . . . 1 . 5 . 7 . Repair Stations 2 | . . . . . . . . . . . 2 . . . . . Recycling Units 11 | . 1 . 3 . . . . . 1 . 5 . 1 . . . Scanalyzers 4 | . . . 2 . . . 2 . . . . . . . . . Garrison Access 7 | . . . . . . . 2 . 1 . 2 . 2 . . . Terminal Hacks 167 | . 31 1 39 . . 5 17 . 34 . 19 . 4 . 16 1 Record 19 | . 1 . 4 . . . 3 . 4 . 5 . . . 2 . Part Schematic 3 | . . . . . . . . . . . 1 . 2 . . . Robot Schematic 2 | . . . . . . . . . . . . . . . 2 . Robot Analysis 6 | . . . 1 . . . . . 3 . 2 . . . . . Prototype ID Bank 2 | . 1 . . . . . 1 . . . . . . . . . Open Door 2 | . . 1 . . . . . . . . . . . . . 1 Level Access Points 3 | . 1 . . . . 1 1 . . . . . . . . . Branch Access Points 7 | . . . 2 . . 1 1 . 1 . . . 1 . 1 . Emergency Access Points 4 | . 1 . 1 . . . 1 . 1 . . . . . . . Machine Index 1 | . 1 . . . . . . . . . . . . . . . Terminal Index 7 | . 1 . 1 . . 1 2 . 1 . . . . . 1 . Fabricator Index 2 | . . . . . . . . . 1 . 1 . . . . . Repair Station Index 5 | . 1 . 2 . . 1 . . 1 . . . . . . . Recycling Unit Index 1 | . . . . . . . . . . . . . . . 1 . Scanalyzer Index 1 | . . . . . . . . . . . . . . . 1 . Garrison Index 2 | . . . 1 . . . . . 1 . . . . . . . Alert Level 6 | . 3 . 2 . . . . . . . 1 . . . . . Unreport Threat 2 | . 1 . . . . . . . . . 1 . . . . . Locate Traps 35 | . 5 . 9 . . 1 3 . 9 . 3 . . . 5 . Disarm Traps 2 | . . . 2 . . . . . . . . . . . . . Reprogram Traps 19 | . 5 . 6 . . . 2 . 2 . 2 . . . 2 . Dispatch Records 3 | . 1 . 1 . . . . . 1 . . . . . . . Security Status 1 | . . . 1 . . . . . . . . . . . . . Surveillance Status 2 | . . . 1 . . . . . 1 . . . . . . . Patrol Status 1 | . . . . . . . . . 1 . . . . . . . Transport Status 6 | . 1 . 1 . . . . . 3 . . . 1 . . . Investigation Status 1 | . . . . . . . 1 . . . . . . . . . Extermination Status 1 | . . . . . . . . . . . 1 . . . . . Reinforcement Status 2 | . 2 . . . . . . . . . . . . . . . Assault Status 5 | . 1 . 2 . . . . . 1 . . . . . 1 . Recall Reinforcements 1 | . 1 . . . . . . . . . . . . . . . Recall Assault 1 | . 1 . . . . . . . . . . . . . . . Hauler Manifests 5 | . 1 . . . . . 1 . 2 . 1 . . . . . Registered Prototypes 4 | . 1 . . . . . 1 . 1 . 1 . . . . . Zone Layout 3 | . 1 . 2 . . . . . . . . . . . . . Fabricator Hacks 12 | . . . . . . . . . . . 1 . 4 . 7 . Network Status 1 | . . . . . . . . . . . . . 1 . . . Load Schematic 4 | . . . . . . . . . . . . . 1 . 3 . Build 7 | . . . . . . . . . . . 1 . 2 . 4 . Repair Station Hacks 2 | . . . . . . . . . . . 2 . . . . . Scan Component 1 | . . . . . . . . . . . 1 . . . . . Repair 1 | . . . . . . . . . . . 1 . . . . . Recycling Unit Hacks 11 | . 1 . 3 . . . . . 1 . 5 . 1 . . . Process 8 | . 1 . 2 . . . . . 1 . 3 . 1 . . . Report Inventory 3 | . . . 1 . . . . . . . 2 . . . . . Scanalyzer 4 | . . . 2 . . . 2 . . . . . . . . . Insert Component 2 | . . . 1 . . . 1 . . . . . . . . . Analyze 2 | . . . 1 . . . 1 . . . . . . . . . Garrison Access Hacks 7 | . . . . . . . 2 . 1 . 2 . 2 . . . Unlock Access 5 | . . . . . . . 1 . 1 . 2 . 1 . . . Coupler Status 2 | . . . . . . . 1 . . . . . 1 . . . Unauthorized Hacks . | . . . . . . . . . . . . . . . . . Terminals . | . . . . . . . . . . . . . . . . . Fabricators . | . . . . . . . . . . . . . . . . . Repair Stations . | . . . . . . . . . . . . . . . . . Recycling Units . | . . . . . . . . . . . . . . . . . Scanalyzers . | . . . . . . . . . . . . . . . . . Garrison Access . | . . . . . . . . . . . . . . . . . Data Cores Recovered 7 | . . . 1 . . . . . 3 . 1 . 1 . 1 . Used 2 | . . . . . . . . . . . . . 1 . 1 . Hacking Detections 39 | . 5 . 7 . . 1 4 . 4 . 8 . 3 . 7 . Full Trace Events 10 | . . . 2 . . . . . . . 2 . 2 . 4 . Feedback Events 1 | . . . . . . . . . . . . . 1 . . . Corruption 1 | . . . . . . . . . . . . . 1 . . . Feedback Blocked . | . . . . . . . . . . . . . . . . . Robot Schematics Acquired 2 | . . . . . . . . . . . . . . . 2 . Robots Built 4 | . . . . . . . . . . . . . . . 4 . Matter 471 | . . . . . . . . . . . . . . . 471 . Time 83 | . . . . . . . . . . . . . . . 83 . Total Robot Build Rating 19 | . . . . . . . . . . . . . . . 19 . Part Schematics Acquired 5 | . . . 1 . . . 1 . . . 1 . 2 . . . Parts Built 4 | . . . . . . . . . . . 1 . 3 . . . Matter 570 | . . . . . . . . . . . 190 . 380 . . . Time 125 | . . . . . . . . . . . 31 . 94 . . . Total Part Build Rating 20 | . . . . . . . . . . . 5 . 15 . . . Parts Repaired 1 | . . . . . . . . . . . 1 . . . . . Time 12 | . . . . . . . . . . . 12 . . . . . Parts Recycled . | . . . . . . . . . . . . . . . . . Recycled Matter 577 | . 84 . 226 . . . . . 32 . 103 . 132 . . . Retrieved Matter . | . . . . . . . . . . . . . . . . . Retrieved Components . | . . . . . . . . . . . . . . . . . Parts Scanalyzed 2 | . . . 1 . . . 1 . . . . . . . . . Part Schematics Acquired 2 | . . . 1 . . . 1 . . . . . . . . . Parts Damaged . | . . . . . . . . . . . . . . . . . Bothacking | -11 -10 -10 -9 -9 -9 -8 -8 -8 -8 -8 -7 -7 -6 -6 -5 -5 ------------ Run | Scr Mat Min Mat Min Exi Min Mat Gar Mat Gar Fac Gar Fac Gar Fac Upp Used RIF Installer 4 | . . . . . . . . 1 . 1 . 1 . 1 . . Robot Detection 1 | . . . . . . . . . . 1 . . . . . . Alert ID Control 1 | . . . . . . . . . . . . . . 1 . . Structural Interface 1 | . . . . . . . . . . . . 1 . . . . Robots Hacked 2 | . . . . . . . . . . . 2 . . . . . Non-combat . | . . . . . . . . . . . . . . . . . Combat 2 | . . . . . . . . . . . 2 . . . . . Robot Hacks Applied 5 | . . . . . . . . . . . 5 . . . . . parse_system 1 | . . . . . . . . . . . 1 . . . . . link_fov 2 | . . . . . . . . . . . 2 . . . . . mark_system 2 | . . . . . . . . . . . 2 . . . . . Relay Couplers Released 19 | . . . . . . . . . . 5 . 6 . 8 . . Machine Destruction 19 | . . . . . . . . . . 5 . 6 . 8 . . Attached 3 | . . . . . . . . . . 3 . . . . . . Robots Rewired 7 | . . . . . . . . . . . 1 . . 6 . . Allies Hacked . | . . . . . . . . . . . . . . . . . Hacks Repelled . | . . . . . . . . . . . . . . . . . Allies | -11 -10 -10 -9 -9 -9 -8 -8 -8 -8 -8 -7 -7 -6 -6 -5 -5 -------- Run | Scr Mat Min Mat Min Exi Min Mat Gar Mat Gar Fac Gar Fac Gar Fac Upp Total Allies 20 | . . 1 . 5 . . . . . . 1 . . 6 7 . Largest Group 8 | . . 1 . 5 3 2 . . . . 1 . . 6 8 . Highest-Rated Group 226 | . . 31 . 85 55 24 . . . . 17 . . 183 226 . Highest-Rated Ally 41 | . . 31 . 31 31 16 . . . . 17 . . 41 41 . Total Orders 4 | . . . . . . . . . . . 2 . 2 . . . ROAM 1 | . . . . . . . . . . . 1 . . . . . FOLLOW 1 | . . . . . . . . . . . 1 . . . . . EXPLORE 2 | . . . . . . . . . . . . . 2 . . . Ally Attacks 155 | . . 8 . 22 . 17 . . . . . . . 7 101 . Total Damage 2891 | . . 86 . 261 . 118 . . . . . . . 329 2097 . Kills 32 | . . 2 . 3 . 2 . . . . . . . 3 22 . Allies Corrupted . | . . . . . . . . . . . . . . . . . Allies Melted . | . . . . . . . . . . . . . . . . . Intel | -11 -10 -10 -9 -9 -9 -8 -8 -8 -8 -8 -7 -7 -6 -6 -5 -5 ------- Run | Scr Mat Min Mat Min Exi Min Mat Gar Mat Gar Fac Gar Fac Gar Fac Upp Robot Analysis Total 6 | . . . 1 . . . . . 3 . 2 . . . . . Derelict Logs Recovered 4 | . . . . 2 . . . . . . . . . . . 2 Drone Launches 2 | . . . . . . . . . . . . . 2 . . . Drone Recoveries . | . . . . . . . . . . . . . . . . . Exploration | -11 -10 -10 -9 -9 -9 -8 -8 -8 -8 -8 -7 -7 -6 -6 -5 -5 ------------- Run | Scr Mat Min Mat Min Exi Min Mat Gar Mat Gar Fac Gar Fac Gar Fac Upp Turns Passed 19017 | 91 949 1592 1980 1124 952 839 1043 1101 1066 1110 1338 931 1369 1291 1624 617 Spaces Moved 15885 | 66 520 858 1042 586 589 459 1006 911 1191 1148 1449 1007 998 1006 2354 695 Core 1157 | 45 . . . . . . 2 1 . . 81 . . 621 2 405 Treads 4202 | 21 520 858 1042 586 589 459 127 . . . . . . . . . Legs . | . . . . . . . . . . . . . . . . . Wheels . | . . . . . . . . . . . . . . . . . Hover 299 | . . . . . . . 229 70 . . . . . . . . Flight 10227 | . . . . . . . 648 840 1191 1148 1368 1007 998 385 2352 290 Fastest Speed 37 | 50 160 160 160 160 160 160 40 40 37 37 37 37 37 37 37 37 Average Speed 79 | 125 160 160 160 160 160 160 59 49 47 60 52 37 37 79 37 74 Slowest Speed 160 | 160 160 160 160 160 160 160 160 60 117 117 117 37 120 117 120 117 Overloaded Moves . | . . . . . . . . . . . . . . . . . Propulsion Burnouts . | . . . . . . . . . . . . . . . . . Robots Hopped 67 | . . . . . . . . . 10 . 14 . 11 . 31 1 Cave-ins Triggered . | . . . . . . . . . . . . . . . . . Exploration Rate (%) 74 | 4 93 100 92 95 94 91 80 67 76 81 46 81 46 97 46 83 Regions Visited 16 Branch Regions 5 Pre-discovered Areas 3 | . . . . 1 . . . . . . . . . . . 2 Known Exits Taken 12 | 1 1 1 1 1 1 1 1 . 1 . 1 . 1 . 1 . Unknown Exits Taken . | . . . . . . . . . . . . . . . . . Scrap Searched 5 | . . . . 2 . . . . . . . . . . . 3 Spaces Dug . | . . . . . . . . . . . . . . . . . Terrain Destroyed 177 | . . . . 1 . . . . 2 . 5 . 46 12 76 35 Melee . | . . . . . . . . . . . . . . . . . Projectile 151 | . . . . 1 . . . . 2 . 5 . 20 12 76 35 AOE 26 | . . . . . . . . . . . . . 26 . . . Actions | -11 -10 -10 -9 -9 -9 -8 -8 -8 -8 -8 -7 -7 -6 -6 -5 -5 --------- Run | Scr Mat Min Mat Min Exi Min Mat Gar Mat Gar Fac Gar Fac Gar Fac Upp Total 20105 | 71 602 1019 1230 704 598 530 1290 1363 1446 1442 1764 1439 1756 1347 2755 749 Wait 2181 | . 51 114 92 63 6 41 140 165 104 90 108 227 583 114 261 22 Move 15740 | 65 519 857 1041 585 588 458 1005 909 1171 1146 1420 1005 980 1004 2294 693 Hop 58 | . . . . . . . . . 9 . 14 . 6 . 28 1 Pick Up 23 | . 1 . 2 1 . 1 4 2 . 2 4 . 1 4 1 . Fast Attach 71 | 6 4 3 8 . 1 . 12 4 7 3 10 . 8 . 4 1 Attach 5 | . . . . 1 . . 1 . . 1 . . . 1 1 . Detach 6 | . 1 . . . . . 1 . 1 2 . . . . 1 . Swap 92 | . . 1 2 . 2 . 12 14 7 2 15 2 13 13 6 3 Drop 65 | . 4 3 7 . 1 1 12 6 7 2 10 . 8 3 1 . Fire 981 | . 18 29 61 34 . 17 78 87 115 62 112 58 99 66 129 16 Melee 35 | . . . 1 . . . . 13 . . 7 . . 10 . 4 Ram 4 | . . . . . . . . . . . 3 . . 1 . . Kick . | . . . . . . . . . . . . . . . . . Crush 1 | . . . . 1 . . . . . . . . . . . . Escape Stasis 434 | . . . . . . . . 105 . 104 . 126 . 99 . . Rewire 6 | . . . . . . . . . . . . . . 4 . 2 Trap 6 | . . . . . . . . 6 . . . . . . . . Miscellaneous 397 | . 4 12 16 19 . 12 25 52 25 28 61 21 58 28 29 7 Route ------- -11/Scrapyard -10/Materials (discovered 5 exits: *Mat x3 / *Min x2) -10/Mines (discovered 2 exits: *Mat x2) -9/Materials (discovered 4 exits: *Mat x3 / *Min) -9/Mines (discovered 3 exits: *Mat x2 / *Exi) -9/Exiles (discovered 2 exits: *Min x2) -8/Mines (discovered 2 exits: *Mat x2) -8/Materials (discovered 5 exits: *Fac x3 / *Sto / Gar) -8/Garrison (discovered 2 exits: *Mat x2) -8/Materials (discovered 4 exits: *Fac x2 / *Sto / Gar) -8/Garrison (discovered 3 exits: *Fac x3) -7/Factory (discovered 6 exits: *Fac x3 / Low / Gar / Gar) -7/Garrison (discovered 3 exits: *Fac x3) -6/Factory (discovered 5 exits: *Fac x2 / *Low x2 / Gar) -6/Garrison (discovered 3 exits: *Fac x3) -5/Factory (discovered 4 exits: *Fac x2 / *Upp x2) -5/Upper Caves (discovered 1 exit: *Upp) History --------- Turn | Location | Event 1 | -11/Scrapyard | Upgraded with Utility slot (x1) 1 | -11/Scrapyard | Upgraded with Weapon slot (x1) 15 | -11/Scrapyard | Identified exit to Materials 15 | -11/Scrapyard | Discovered exit to Materials (range 16) 92 | -11/Scrapyard | Entered Materials 258 | -10/Materials | Identified exit to Materials 258 | -10/Materials | Discovered exit to Materials (range 15) 404 | -10/Materials | Build established: Hacker-Skirmisher 415 | -10/Materials | Identified exit to Mines 415 | -10/Materials | Discovered exit to Mines (range 15) 659 | -10/Materials | Discovered exit to Mines (range 13) 1041 | -10/Materials | Entered Mines 1072 | -10/Mines | Met a Derelict shopkeep closing up shop 1426 | -10/Mines | Received a Mining Laser from a helpful Derelict 1455 | -10/Mines | Reached level 2 1483 | -10/Mines | Upgraded with Utility slot (x1) 1694 | -10/Mines | Received a Rocket Launcher from a helpful Derelict 1806 | -10/Mines | Discovered exit to Materials (range 3) 1954 | -10/Mines | Discovered exit to Materials (range 13) 2633 | -10/Mines | Entered Materials 2635 | -9/Materials | Reached level 3 2635 | -9/Materials | Reached level 4 2637 | -9/Materials | Upgraded with Utility slot (x1) 2711 | -9/Materials | Identified exit to Mines 2711 | -9/Materials | Discovered exit to Mines (range 13) 3034 | -9/Materials | Identified exit to Materials 3034 | -9/Materials | Discovered exit to Materials (range 10) 3072 | -9/Materials | Reached level 5 3771 | -9/Materials | Discovered exit to Materials (range 23) 3799 | -9/Materials | Reached level 6 4293 | -9/Materials | Discovered exit to Materials (range 23) 4613 | -9/Materials | Entered Mines 4665 | -9/Mines | Discovered exit to Materials (range 16) 4666 | -9/Mines | Reached level 7 4680 | -9/Mines | Upgraded with Utility slot (x1) 4748 | -9/Mines | Learned location of Zion (-7) 4751 | -9/Mines | Assembled infested the area 4873 | -9/Mines | Destroyed 7 combat bots 5040 | -9/Mines | Identified exit to Exiles 5040 | -9/Mines | Discovered exit to Exiles (range 15) 5056 | -9/Mines | Deemed a non-threat by the Exiles lab entrance 5155 | -9/Mines | Assisted by bots powering up and referring to "LRC-V3" 5167 | -9/Mines | Discovered exit to Materials (range 14) 5208 | -9/Mines | Learned Materials trap positions 5737 | -9/Mines | Entered Exiles 5737 | -9/Exiles | Accompanied by 3 allies 5763 | -9/Exiles | Identified exit to Mines 5763 | -9/Exiles | Discovered exit to Mines (range 19) 5767 | -9/Exiles | Led the pair of lost Derelicts to a safe place 5798 | -9/Exiles | Met 8R-AWN 5827 | -9/Exiles | Met EX-HEX 5942 | -9/Exiles | Met EX-BIN 6086 | -9/Exiles | Met EX-DEC 6148 | -9/Exiles | Build established: Hacker-Assassin 6168 | -9/Exiles | Discovered exit to Mines (range 12) 6302 | -9/Exiles | Visited The Gauntlet 6689 | -9/Exiles | Entered Mines 6689 | -8/Mines | Accompanied by 2 allies 6938 | -8/Mines | Build established: Hacker-Skirmisher 6959 | -8/Mines | Reached level 8 7528 | -8/Mines | Entered Materials 7529 | -8/Materials | Loaded intel: 13 trap records 7530 | -8/Materials | Reached level 9 7750 | -8/Materials | Reached level 10 7754 | -8/Materials | Identified exit to Storage 7754 | -8/Materials | Discovered exit to Storage (range 23) 7764 | -8/Materials | Identified exit to Factory 7832 | -8/Materials | Upgraded with Utility slot (x1) 8063 | -8/Materials | Identified exit to Garrison 8176 | -8/Materials | Build established: Hacker-Scout 8281 | -8/Materials | Reached level 11 8287 | -8/Materials | Upgraded with Propulsion slot (x1) 8413 | -8/Materials | Destroyed 7 combat bots 8571 | -8/Materials | Entered Garrison 8582 | -8/Garrison | Triggered checkpoint 8588 | -8/Garrison | Reached level 12 8698 | -8/Garrison | Triggered checkpoint 8825 | -8/Garrison | Identified exit to Materials 8825 | -8/Garrison | Discovered exit to Materials (range 18) 8828 | -8/Garrison | Triggered checkpoint 9220 | -8/Garrison | Triggered checkpoint 9248 | -8/Garrison | Triggered checkpoint 9311 | -8/Garrison | Triggered checkpoint 9383 | -8/Garrison | Discovered exit to Materials (range 26) 9412 | -8/Garrison | Triggered checkpoint 9513 | -8/Garrison | Triggered checkpoint 9619 | -8/Garrison | Installed Relay Interface Framework 9619 | -8/Garrison | Reached level 13 9672 | -8/Garrison | Entered Materials 9724 | -8/Materials | Discovered exit to Storage (range 20) 9919 | -8/Materials | Discovered exit to Factory (range 16) 10289 | -8/Materials | Identified exit to Garrison 10416 | -8/Materials | Discovered exit to Factory (range 20) 10472 | -8/Materials | First assault squad dispatched 10738 | -8/Materials | Entered Garrison 10790 | -8/Garrison | Build established: Hacker-Skirmisher 10800 | -8/Garrison | Triggered checkpoint 10852 | -8/Garrison | Triggered checkpoint 10860 | -8/Garrison | Triggered checkpoint 10943 | -8/Garrison | Triggered checkpoint 10989 | -8/Garrison | Discovered exit to Factory (range 18) 11248 | -8/Garrison | Reached level 14 11263 | -8/Garrison | Triggered checkpoint 11378 | -8/Garrison | Triggered checkpoint 11381 | -8/Garrison | Discovered exit to Factory (range 20) 11432 | -8/Garrison | Expanded RIF knowledge: Robot Detection 11459 | -8/Garrison | Triggered checkpoint 11545 | -8/Garrison | Garrison Relay disabled 11578 | -8/Garrison | Build established: Hacker-Scout 11588 | -8/Garrison | Discovered exit to Factory (range 14) 11670 | -8/Garrison | Garrison Relay disabled 11722 | -8/Garrison | Triggered checkpoint 11743 | -8/Garrison | Garrison Relay disabled 11787 | -8/Garrison | Upgraded with Utility slot (x1) 11848 | -8/Garrison | Entered Factory 11900 | -7/Factory | Reached level 15 12331 | -7/Factory | Repaired Hvy. Armor Plating 12410 | -7/Factory | Identified exit to Factory 12410 | -7/Factory | Discovered exit to Factory (range 20) 12453 | -7/Factory | Upgraded with Weapon slot (x1) 12707 | -7/Factory | Identified exit to Garrison 12713 | -7/Factory | Identified exit to Lower Caves 12713 | -7/Factory | Discovered exit to Lower Caves (range 17) 12713 | -7/Factory | Garrison activated, responded to threat 12840 | -7/Factory | Fabricated Imp. Transmission Jammer (x1) 12848 | -7/Factory | Reached level 16 12910 | -7/Factory | Discovered exit to Factory (range 16) 12938 | -7/Factory | Garrison activated, responded to threat 13029 | -7/Factory | Discovered exit to Factory (range 15) 13181 | -7/Factory | Identified exit to Garrison 13186 | -7/Factory | Entered Garrison 13196 | -7/Garrison | Triggered checkpoint 13232 | -7/Garrison | Garrison Relay disabled 13265 | -7/Garrison | Triggered checkpoint 13492 | -7/Garrison | Triggered checkpoint 13508 | -7/Garrison | Triggered checkpoint 13531 | -7/Garrison | Triggered checkpoint 13575 | -7/Garrison | Triggered checkpoint 13675 | -7/Garrison | Garrison Relay disabled 13692 | -7/Garrison | Discovered exit to Factory (range 8) 13709 | -7/Garrison | Reached level 17 13725 | -7/Garrison | Discovered exit to Factory (range 18) 13770 | -7/Garrison | Triggered checkpoint 13868 | -7/Garrison | Garrison Relay disabled 13956 | -7/Garrison | Triggered checkpoint 13972 | -7/Garrison | Garrison Relay disabled 13992 | -7/Garrison | Discovered exit to Factory (range 20) 14002 | -7/Garrison | Expanded RIF knowledge: Structural Interface 14117 | -7/Garrison | Entered Factory 14119 | -6/Factory | Reached level 18 14183 | -6/Factory | Spotted B-75 Beast 14203 | -6/Factory | Destroyed B-75 Beast 14246 | -6/Factory | Identified exit to Lower Caves 14273 | -6/Factory | Fabricated Lgt. Angular Momentum Engine? 14359 | -6/Factory | Identified exit to Factory 14359 | -6/Factory | Discovered exit to Factory (range 23) 14592 | -6/Factory | Discovered exit to Factory (range 15) 14817 | -6/Factory | First assault squad dispatched 14946 | -6/Factory | Reached level 19 15028 | -6/Factory | Garrison activated, responded to threat 15160 | -6/Factory | Identified exit to Garrison 15234 | -6/Factory | Destroyed 9 combat bots 15276 | -6/Factory | Fabricated Drone Bay (x1) 15486 | -6/Factory | Entered Garrison 15575 | -6/Garrison | Spotted B-75 Beast 15619 | -6/Garrison | Destroyed B-75 Beast 15650 | -6/Garrison | Triggered checkpoint 15666 | -6/Garrison | Triggered checkpoint 15700 | -6/Garrison | Reached level 20 15738 | -6/Garrison | Triggered checkpoint 15740 | -6/Garrison | Destroyed 9 combat bots 15800 | -6/Garrison | Triggered checkpoint 15861 | -6/Garrison | Garrison Relay disabled 15931 | -6/Garrison | Garrison Relay disabled 15935 | -6/Garrison | Upgraded with Weapon slot (x1) 15944 | -6/Garrison | Triggered checkpoint 15948 | -6/Garrison | Discovered exit to Factory (range 10) 16128 | -6/Garrison | Garrison Relay disabled 16146 | -6/Garrison | Triggered checkpoint 16262 | -6/Garrison | Triggered checkpoint 16318 | -6/Garrison | Triggered checkpoint 16336 | -6/Garrison | Triggered checkpoint 16363 | -6/Garrison | Garrison Relay disabled 16382 | -6/Garrison | Discovered exit to Factory (range 12) 16400 | -6/Garrison | Expanded RIF knowledge: Alert ID Control 16486 | -6/Garrison | Discovered exit to Factory (range 10) 16512 | -6/Garrison | Triggered checkpoint 16538 | -6/Garrison | Garrison Relay disabled 16777 | -6/Garrison | Entered Factory 16777 | -5/Factory | Accompanied by 6 allies 16779 | -5/Factory | Reached level 21 17140 | -5/Factory | Reached level 22 17201 | -5/Factory | Identified exit to Upper Caves 17280 | -5/Factory | Identified exit to Factory 17280 | -5/Factory | Discovered exit to Factory (range 4) 17564 | -5/Factory | Allied Derelicts emerged from ambush trap array 17615 | -5/Factory | Garrison activated, responded to threat 17665 | -5/Factory | Reached level 23 17677 | -5/Factory | First assault squad dispatched 17691 | -5/Factory | Fabricated K-01 Serf? 17745 | -5/Factory | Discovered exit to Factory (range 20) 17760 | -5/Factory | Fabricated B-60 Warrior? 17821 | -5/Factory | Destroyed 8 combat bots 17947 | -5/Factory | High security lockdown imminent 18027 | -5/Factory | High security lockdown engaged 18270 | -5/Factory | Core integrity fell below 50% 18384 | -5/Factory | Core integrity fell below 20% 18401 | -5/Factory | Entered Upper Caves 18451 | -5/Upper Caves | Reached level 24 18467 | -5/Upper Caves | Learned location of Armory (-4) 18491 | -5/Upper Caves | Encountered a Warlord checkpoint 18492 | -5/Upper Caves | Upgraded with Power slot (x1) 18502 | -5/Upper Caves | Identified exit to Upper Caves 18502 | -5/Upper Caves | Discovered exit to Upper Caves (range 14) 18539 | -5/Upper Caves | Upgraded with Propulsion slot (x1) 18873 | -5/Upper Caves | Build established: Hacker-Gunner 18967 | -5/Upper Caves | Attracted the attention of an 0b10 outpost 19018 | -5/Upper Caves | Destroyed by S-27 Virus with Autogun Last Messages --------------- 18986_ S-27 Virus destroyed. 18986_ Slug penetrates Earth. 18989_ Slug penetrates Y-72 Warden. 18989_ Y-72 Warden destroyed. 18993_ Slug penetrates L-41 Fighter. 18993_ Destroyed Carbon-fiber Leg. 18993_ L-41 Fighter knocked back. 18996_ Slug penetrates L-41 Fighter. 18996_ L-41 Fighter destroyed. 18999_ System corrupted: Matter fused (-6). 19000_ Slug penetrates B-60 Warrior. 19000_ Slug penetrates Earth. 19000_ Slug penetrates B-60 Warrior. 19000_ Knocked back. 19002_ Protomatter-18 decays. 19003_ Slug penetrates Wall. 19010_ G-50 Soldier destroyed. 19014_ Slug penetrates Earth. 19017_ Slug penetrates B-60 Warrior. 19017_ B-60 Warrior destroyed. Map ----- +----------------------------------------------------+ | ???####???????## #????????#%%%%#### ##### | | ?????????????### ##???????# %## #???# | | ?????????????# ##??????# % %### ## #???? | | ?????????????# ######## % ## ## #???? | | ?????????????## ###%% ###% ## ##???# | | ??????????????## ###% %## ### ##?#### | | ??????????????## ## ### ##%% #?###?## | | ??????????????# ### #?# %% % ##????# | | ??????????????## ##?# #### #%%% ####### | | ???????????????### ##??# #### #% ### | | ?????????????????# #???##### ## ### | | ?????????????????# ##????# ### | | ?????????????????# #????# # ### ## | | ?????????????????# #??????# ### ##?# ## | | ?????????????????# #??????# #?# ##### ## | | ?????????????????# #???M??## #?# # ## | | ????????????????## #??????# #?# ##? | | ????????????????# ##??#### ##?############## | | ????????????????## #### ###?????????????## | | ?????????????????## ## ####???????????????# | | ??????????????????## #??????????????????# | | ??????????????####?# ###????????????????## | | ?????????????## ### #?????????????????## | | ?????????????# ### ##??????????????????? | | ??????????????# #; ##??????????????????? | | ???????????????# ## @ ##### #????????????? | | ??????????????## % #????????????? | | ?????????????## s *#; #????????????? | | ???????????### !%!%[###### #????????????? | | ???????????# s;;# # ### ###?????? | | ???????????## %=! =%! #?????? | | ????????????###;# #; % #???? | | ??????????????#?## ##;# ;;!;# #???? | | ?????????????????#;;## ##;;# # ######???? | | ?????????????????# #?? ?# ## ##? #????????? | | ?????????????????##??##?# #?# #??? ##????????? | | ????????????????????????# #?? #????#####?????????? | | ????????????????????????# #??##??????????????????? | | ????????????????????????# #??????????????????????? | | ????????????????????????? ???????????????????????? | | ?????????????????????????#???????????????????????? | | ?????????????????????????????????????????????????? | | ?????????????????????????????????????????????????? | | ?????????????????????????????????????????????????? | | ?????????????????????????????????????????????????? | | ?????????????????????????????????????????????????? | | ?????????????????????????????????????????????????? | | ?????????????????????????????????????????????????? | | ?????????????????????????????????????????????????? | | ?????????????????????????????????????????????????? | +----------------------------------------------------+ Best States ------------- Heat Dissipation 85 Energy Generation 33 Energy Capacity 455 Matter Stores 700 Matter Capacity 700 Sight Range 28 Robot Scan Range 18 Terrain Scan Range 20 Terrain Scan Density 410 ECM Strength 3 Armor Coverage 600 Resistance: KI 65 Resistance: TH 35 Resistance: EX 35 Resistance: EM 35 Resistance: I 35 Resistance: S 35 Resistance: P 35 Power Shielding 33 Propulsion Shielding 33 Evasion (%) 62 Recoil Reduction 1 Particle Charging 15 Offensive Hacking 45 Defensive Hacking 10 Item Schematics ----------------- Datajack | -9/Materials | Scanalyzed ECM Suite | -8/Materials | Scanalyzed System Guard | -7/Factory | Hacked Neutrino Core | -6/Factory | Hacked Drone Bay | -6/Factory | Hacked Robot Schematics ------------------ K-01 Serf | -5/Factory | Hacked B-60 Warrior | -5/Factory | Hacked Fabricated ------------ Imp. Transmission Jammer | x1 | -7/Factory | Preloaded Lgt. Angular Momentum Engine | x2 | -6/Factory | Preloaded Drone Bay | x1 | -6/Factory K-01 Serf | x1 | -5/Factory B-60 Warrior | x3 | -5/Factory Alien Tech Used ----------------- None Achievements -------------- Cya! Exterminator Gun Specialist Hunted Infiltrator Maximum Efficiency Challenges ------------ None RPGLIKE | -11 -10 -10 -9 -9 -9 -8 -8 -8 -8 -8 -7 -7 -6 -6 -5 -5 --------- Run | Scr Mat Min Mat Min Exi Min Mat Gar Mat Gar Fac Gar Fac Gar Fac Upp Levels Raised 23 | . . 1 4 1 . 1 3 2 . 1 2 1 2 1 3 1 XP Earned 40640 | 6000 835 1765 5733 1000 200 1516 4944 2037 1041 874 3195 1313 3377 1547 4965 298 XP Spent 39930 | 5995 . 1450 5785 1750 . 1400 4200 1750 . 2500 3350 . 4275 1900 4275 1300 Upgrades 88 | 25 . 4 10 2 . 10 7 4 . 2 4 . 8 2 8 2 Power Slot 1 | . . . . . . . . . . . . . . . . 1 Propulsion Slot 2 | . . . . . . . 1 . . . . . . . . 1 Utility Slot 6 | 1 . 1 1 1 . . 1 . . 1 . . . . . . Weapon Slot 3 | 1 . . . . . . . . . . 1 . . 1 . . Core Integrity 4 | 4 . . . . . . . . . . . . . . . . Heat Dissipation 10 | . . . . . . 10 . . . . . . . . . . Energy Generation 2 | . . . . . . . . 2 . . . . . . . . Matter Storage 8 | . . . 2 . . . . . . . . . . . 6 . Mass Support 9 | . . . . . . . 4 . . 1 2 . . 1 1 . Inventory Capacity 6 | 1 . . 2 . . . 1 . . . 1 . . . 1 . Sight Range 4 | 1 . 1 1 . . . . 1 . . . . . . . . Sensor Range 9 | 6 . . . . . . . 1 . . . . 2 . . . Terrain Scan Density 4 | 3 . . 1 . . . . . . . . . . . . . Ranged Accuracy 2 | 2 . . . . . . . . . . . . . . . . Hack Attack % 5 | 4 . . . . . . . . . . . . 1 . . . Hack Defense % 2 | 2 . . . . . . . . . . . . . . . . KI Resistance % 4 | . . 1 . 1 . . . . . . . . 2 . . . KI Damage % 4 | . . 1 3 . . . . . . . . . . . . . TH Damage % 3 | . . . . . . . . . . . . . 3 . . . Protomatter Created 5866 | . 14 95 206 86 . 166 604 623 483 334 495 305 727 837 806 85 Integrity Restored 7445 | . 79 246 259 383 . 232 363 1051 466 530 1310 316 1132 459 451 168 Core 5791 | . 79 246 174 383 . 101 249 782 362 418 1134 238 787 353 317 168 Parts 1654 | . . . 85 . . 131 114 269 104 112 176 78 345 106 134 . Protomatter Decayed 4807 | . 3 79 387 12 . 128 519 245 375 126 109 157 530 788 1331 18 Game ------ Seed MyomerWeaponBoomstick Manual? 0 Play Time 04:33:36 Cumulative 59.9 hours Start 2019.12.25 @ 00:22:33 End 2019.12.25 @ 04:58:42 Sessions 1 Manual Loads 0 Difficulty Explorer Special Mode Winter2019/RPGLIKE Game No. 51 Rogue 47 Adventurer 0 Explorer 4 Win Type - Total 0 Types 0/0/0/0/0/0/0 Lore% 32 Gallery% 37 Achievement% 34 Wizard Run 0 Options --------- ASCII 1 Keyboard 1 Movement Vi Keybinds 0 Fullscreen 1 Font 18/SmallcapsGlow Map View 76x50 Tactical HUD 1 Map Filters NONE Filters LOW_CONTRAST(47,30,31)|SHIFT_HUE(270) Steam 1 RUN: f04ad005-4f93-4d0f-a66b-1484eccadaf8